fUSD/lending_fUSD_20240211
["ID","MTS","AMOUNT","RATE_DAILY","PERIOD"]
[313753130,1707671446540,-1519.81,0.00030617,2]
[313753131,1707671446548,-200.0,0.000307,3]
[313753132,1707671446557,-150.0,0.00030714,2]
[313753133,1707671446566,-245.96,0.00030791,2]
[313753134,1707671446575,-299.33616556,0.0003088,2]
[313753135,1707671446584,-43359.81785527,0.0003098,2]
[313753136,1707671446593,-738.0,0.0003098,120]
[313753137,1707671446602,-300.0,0.00031,32]
[313753138,1707671446611,-1400.0,0.00031,3]
[313753139,1707671446620,-1000.0,0.00031,2]
[313753140,1707671446629,-754.04,0.00031103,2]
[313753141,1707671446638,-158.2017388,0.0003115,4]
[313753142,1707671446647,-200.0,0.000312,3]
[313753143,1707671446656,-205.0,0.00031287,15]
[313753144,1707671446665,-150.0,0.00031291,2]
[313753145,1707671446676,-6323.96402345,0.000314,30]
[313753146,1707671446685,-154.60172405,0.00031441,3]
[313753147,1707671446694,-360.01041936,0.000315,2]
[313753148,1707671446703,-1000.0,0.000315,2]
[313753149,1707671446712,-155.0,0.00031507,2]
[313753150,1707671446721,-151.0,0.00031548,120]
[313753151,1707671446731,-200.47,0.00031644,2]
[313753152,1707671446742,-180.0,0.00031644,2]
[313753153,1707671446752,-1946.0,0.00031661,2]
[313753154,1707671446762,-237.0,0.00031661,2]
[313753155,1707671446773,-1003.0,0.00031661,2]
[313753156,1707671446787,-859.0,0.00031661,2]
[313753157,1707671446796,-150.0,0.00031661,2]
[313753158,1707671446806,-321.0,0.00031661,2]
[313753159,1707671446816,-1138.0,0.00031661,2]
[313753160,1707671446825,-453.0,0.00031661,2]
[313753161,1707671446834,-343.0,0.00031661,2]
[313753162,1707671446844,-200.0,0.000317,4]
[313753163,1707671446853,-7172.01090823,0.000317,2]
[313753164,1707671446884,-12827.98909177,0.000317,2]
[313753165,1707671446893,-8154.0,0.00031745,2]
[313753166,1707671446902,-2923.0,0.00031745,2]
[313753167,1707671446911,-2287.0,0.00031745,2]
[313753168,1707671446921,-4195.0,0.00031745,2]
[313753169,1707671446930,-1036.0,0.00031745,2]
[313753170,1707671446939,-373949.343587,0.000318,3]
[313753171,1707671446950,-150.0,0.00031867,2]
[313753172,1707671446959,-511.84,0.00031956,2]
[313753173,1707671446968,-738.0,0.0003198,120]
[313753174,1707671446977,-6254.31,0.0003199,10]
[313753175,1707671446986,-3191.30198755,0.00031997,2]
[313753176,1707671446995,-13241.39479635,0.00032,4]
[313753177,1707671447004,-600.0,0.00032,33]
[313753178,1707671447014,-198026.5632674,0.00032,2]
[313753179,1707671447023,-300.0,0.00032,2]
[313753180,1707671447032,-309477.62703,0.00032012,7]
[313753181,1707671447041,-1639.62532959,0.00032012,7]
[313753182,1707671447050,-151.0,0.00032191,30]
[313753183,1707671447059,-200.0,0.000322,5]
[313753184,1707671447069,-153.74,0.000322,2]
[313753185,1707671447079,-153.74,0.000322,2]
[313753186,1707671447089,-153.74,0.000322,2]
[313753187,1707671447099,-153.74,0.000322,2]
[313753188,1707671447109,-153.74,0.000322,2]
[313753189,1707671447118,-153.74,0.000322,2]
[313753190,1707671447128,-2213.65522675,0.00032205,3]
[313753191,1707671447137,-152.0,0.00032319,3]
[313753192,1707671447146,-150.0,0.00032444,2]
[313753193,1707671447155,-152.75661,0.00032459,2]
[313753194,1707671447165,-1000.0,0.00032566,7]
[313753195,1707671447175,-1000.0,0.00032566,7]
[313753196,1707671447184,-1000.0,0.00032566,7]
[313753197,1707671447193,-154.60172405,0.00032566,4]
[313753198,1707671447202,-1000.0,0.00032612,7]
[313753199,1707671447211,-1000.0,0.00032612,7]
[313753200,1707671447219,-1000.0,0.00032612,7]
[313753201,1707671447229,-152.94872527,0.0003265,6]
[313753202,1707671447238,-1000.0,0.00032662,7]
[313753203,1707671447247,-1000.0,0.00032662,7]
[313753204,1707671447256,-200.0,0.000327,5]
[313753205,1707671447265,-1000.0,0.00032701,7]
[313753206,1707671447274,-151.0,0.00032848,7]
[313753207,1707671447283,-150.1,0.00032877,2]
[313753208,1707671447291,-318.18,0.00032877,2]
[313753209,1707671447302,-155.0,0.00032877,2]
[313753210,1707671447312,-738.0,0.0003298,120]
[313753211,1707671447321,-831.79,0.00032985,2]
[313753212,1707671447330,-181.69,0.00032985,2]
[313753213,1707671447339,-836.52,0.00032985,2]
[313753214,1707671447349,-300.0,0.00032985,2]
[313753215,1707671447359,-411.49,0.00032985,2]
[313753216,1707671447370,-955.54,0.00032985,2]
[313753217,1707671447381,-422.75,0.00032985,2]
[313753218,1707671447399,-342.41,0.00032985,2]
[313753219,1707671447408,-151.22,0.00032985,2]
[313753220,1707671447417,-2000.0,0.00033,2]
[313753221,1707671447426,-290.06980001,0.00033,2]
[313753222,1707671447436,-600.0,0.00033,34]
[313753223,1707671447444,-1450.0,0.00033,3]
[313753224,1707671447454,-1606.60260721,0.00033,2]
[313753225,1707671447464,-150.0,0.00033014,2]
[313753226,1707671447481,-150.0,0.00033014,2]
[313753227,1707671447489,-150.0,0.00033021,2]
[313753228,1707671447498,-205.0,0.00033082,18]
[313753229,1707671447507,-372.782,0.00033193,2]
[313753230,1707671447516,-557.879,0.00033193,2]
[313753231,1707671447525,-841.0,0.00033193,2]
[313753232,1707671447536,-2831.0,0.00033193,2]
[313753233,1707671447546,-311.324,0.00033193,2]
[313753234,1707671447555,-1858.0,0.00033193,2]
[313753235,1707671447564,-372.049,0.00033193,2]
[313753236,1707671447573,-645.289,0.00033193,2]
[313753237,1707671447583,-429.0,0.00033193,2]
[313753238,1707671447591,-200.0,0.000332,6]
[313753239,1707671447601,-436.06880607,0.0003325,2]
[313753240,1707671447610,-500.0,0.00033296,10]
[313753241,1707671447619,-2622.21069093,0.00033333,2]
[313753242,1707671447628,-152.0,0.00033345,4]
[313753243,1707671447637,-1000.0,0.00033439,7]
[313753244,1707671447646,-549.1,0.000335,2]
[313753245,1707671447656,-549.1,0.000335,2]
[313753246,1707671447665,-549.1,0.000335,2]
[313753247,1707671447674,-549.1,0.000335,2]
[313753248,1707671447683,-549.1,0.000335,2]
[313753249,1707671447693,-549.1,0.000335,2]
[313753250,1707671447702,-549.1,0.000335,2]
[313753251,1707671447711,-549.1,0.000335,2]
[313753252,1707671447720,-549.1,0.000335,2]
[313753253,1707671447729,-549.1,0.000335,2]
[313753254,1707671447739,-549.1,0.000335,2]
[313753255,1707671447749,-549.1,0.000335,2]
[313753256,1707671447760,-549.1,0.000335,2]
[313753257,1707671447769,-549.1,0.000335,2]
[313753258,1707671447781,-549.1,0.000335,2]
[313753259,1707671447790,-549.1,0.000335,2]
[313753260,1707671447799,-549.1,0.000335,2]
[313753261,1707671447808,-549.1,0.000335,2]
[313753262,1707671447818,-549.1,0.000335,2]
[313753263,1707671447827,-549.1,0.000335,2]
[313753264,1707671447837,-151.0,0.00033519,4]
[313753265,1707671447846,-299.33616554,0.00033584,2]
[313753266,1707671447856,-245.96,0.0003359,2]
[313753267,1707671447868,-150.0,0.00033598,2]
[313753268,1707671447877,-154.60172405,0.00033692,5]
[313753269,1707671447888,-200.0,0.000337,6]
[313753270,1707671447899,-1000.0,0.000337,2]
[313753271,1707671447908,-607.641422,0.00033753,2]
[313753272,1707671447918,-593.671814,0.00033753,2]
[313753273,1707671447928,-8021.177545,0.00033753,2]
[313753274,1707671447937,-171.397117,0.00033753,2]
[313753275,1707671447947,-183.049784,0.00033753,2]
[313753276,1707671447956,-154.734172,0.00033753,2]
[313753277,1707671447966,-168.519632,0.00033753,2]
[313753278,1707671447975,-171.258447,0.00033753,2]
[313753279,1707671447985,-17601.28828475,0.00033805,2]
[313753280,1707671447994,-151.82815572,0.000339,2]
[313753281,1707671448003,-151.82815572,0.000339,2]
[313753282,1707671448013,-151.82815572,0.000339,2]
[313753283,1707671448022,-151.82815572,0.000339,2]
[313753284,1707671448031,-151.82815572,0.000339,2]
[313753285,1707671448041,-151.82815572,0.000339,2]
[313753286,1707671448050,-151.82815572,0.000339,2]
[313753287,1707671448060,-151.82815572,0.000339,2]
[313753288,1707671448069,-151.82815572,0.000339,2]
[313753289,1707671448078,-151.82815572,0.000339,2]
[313753290,1707671448088,-151.82815572,0.000339,2]
[313753291,1707671448097,-151.82815572,0.000339,2]
[313753292,1707671448106,-151.82815572,0.000339,2]
[313753293,1707671448115,-151.82815572,0.000339,2]
[313753294,1707671448125,-151.82815572,0.000339,2]
[313753295,1707671448134,-151.82815572,0.000339,2]
[313753296,1707671448144,-151.82815572,0.000339,2]
[313753297,1707671448155,-151.82815572,0.000339,2]
[313753298,1707671448165,-151.82815572,0.000339,2]
[313753299,1707671448175,-151.82815572,0.000339,2]
[313753300,1707671448184,-151.82815572,0.000339,2]
[313753301,1707671448194,-151.82815572,0.000339,2]
[313753302,1707671448203,-151.82815572,0.00033914,2]
[313753303,1707671448212,-754.04,0.00033931,2]
[313753304,1707671448221,-5000.0,0.0003398,2]
[313753305,1707671448229,-50000.0,0.0003398,10]
[313753306,1707671448238,-738.0,0.0003398,120]
[313753307,1707671448247,-155.96019547,0.00034,4]
[313753308,1707671448257,-767.32331922,0.00034,4]
[313753309,1707671448266,-600.0,0.00034,35]
[313753310,1707671448275,-10244.0,0.00034,2]
[313753311,1707671448285,-27208.7730228,0.00034,2]
[313753312,1707671448294,-2999.99999903,0.00034,9]
[313753313,1707671448302,-259.0,0.00034,2]
[313753314,1707671448312,-1000.0,0.00034,7]
[313753315,1707671448321,-18420.92203062,0.00034002,10]
[313753316,1707671448331,-5778.3365029,0.00034002,10]
[313753317,1707671448340,-943.83545401,0.00034002,10]
[313753318,1707671448353,-891.55062101,0.00034002,10]
[313753319,1707671448892,-242.66389338,0.00022498,2]
[313753320,1707671448902,-250.4553575,0.00022498,2]
[313753321,1707671448911,-405.05531825,0.00034002,10]
[313753322,1707671448924,-284.02500002,0.00034002,10]
[313753323,1707671449046,-278.23,0.00034002,10]
[313753324,1707671449060,-9621.98115264,0.00034002,10]
[313753326,1707671454623,285.16657938,0.00022393,2]
[313753327,1707671454736,155.49699195,0.00022393,2]
[313753328,1707671464240,205.0,0.00022314,2]
[313753341,1707671546450,358.28,0.00021749,2]
[313753348,1707671644964,542.27160509,0.00022385,2]
[313753352,1707671717690,153.76090243,0.00022375,2]
[313753355,1707671752705,1046.72092174,0.00022401,2]
[313753356,1707671755992,203.73243669,0.00022401,2]
[313753357,1707671756024,155.0,0.00022401,2]
[313753358,1707671761437,2028.21850673,0.00022401,2]
[313753360,1707671765398,1142.56291216,0.00022401,2]
[313753361,1707671765994,436.36606783,0.00022401,2]
[313753362,1707671769902,2318.65841291,0.00022401,2]
[313753363,1707671770698,1180.65689555,0.00022401,2]
[313753364,1707671771617,315.86538596,0.00022401,2]
[313753365,1707671774380,1262.54567766,0.00022401,2]
[313753367,1707671797975,7824.17833046,0.00022401,2]
[313753368,1707671799560,155.0,0.00022401,2]
[313753370,1707671803547,3644.16628994,0.00022401,2]
[313753372,1707671805956,2157.44704768,0.00022401,2]
[313753373,1707671808642,4649.9752892,0.00022401,2]
[313753374,1707671817597,1378.6670059,0.00022401,2]
[313753375,1707671821365,1047.00830276,0.00022401,2]
[313753376,1707671822265,43221.24662557,0.00022401,2]
[313753393,1707672109332,153.76090238,0.00022355,2]
[313753395,1707672134432,340.36,0.00020389,2]
[313753400,1707672202449,193.72,0.00022313,2]
[313753420,1707672522549,158.31,0.00022355,2]
[313753421,1707672523910,2000.0,0.00022188,2]
[313753427,1707672604306,323.34,0.00020356,2]
[313753443,1707672631874,-213.35535793,0.00022405,2]
[313753444,1707672631883,-215.87717956,0.00022406,2]
[313753445,1707672631892,-250.0,0.00022407,2]
[313753446,1707672631901,-150.0,0.00022432,2]
[313753447,1707672631912,-10551.2728412,0.00022432,2]
[313753448,1707672631921,-10580.58550241,0.00022433,2]
[313753449,1707672631931,-3644.16628994,0.00022434,2]
[313753450,1707672631940,-755.08957542,0.00022466,2]
[313753451,1707672631949,-1046.63233494,0.00022466,2]
[313753452,1707672631959,-1274.86652846,0.00022466,2]
[313753453,1707672631968,-304.33848507,0.00022466,2]
[313753454,1707672631978,-1293.95894169,0.00022466,2]
[313753455,1707672631987,-155.0,0.00022466,2]
[313753456,1707672631996,-201.85414877,0.00022466,2]
[313753457,1707672632006,-4635.2226176,0.00022466,2]
[313753458,1707672632015,-654.76757846,0.00022466,2]
[313753459,1707672632025,-579.39693665,0.00022467,2]
[313753460,1707672632033,-203.60219967,0.00022472,2]
[313753461,1707672632042,-801.32742954,0.00022472,2]
[313753462,1707672632051,-285.92935889,0.00022472,2]
[313753463,1707672632061,-5395.01,0.00022472,2]
[313753464,1707672632070,-3017.52799565,0.00022498,2]
[313753465,1707672632079,-499.99,0.00022518,2]
[313753466,1707672632089,-464.0,0.00022518,2]
[313753467,1707672632098,-2035.1,0.00022519,2]
[313753468,1707672632107,-290.3213485,0.00022609,2]
[313753469,1707672632117,-156.05745756,0.0002261,2]
[313753470,1707672632126,-323.34,0.0002262,2]
[313753471,1707672632135,-5927.9421,0.0002276,2]
[313753472,1707672632145,-7191.0953,0.0002276,2]
[313753473,1707672632160,-1183.7096,0.0002276,2]
[313753474,1707672632172,-1000.0,0.0002276,2]
[313753475,1707672632181,-10380.601,0.0002276,2]
[313753476,1707672632191,-1697.2739,0.0002276,2]
[313753477,1707672632201,-174.34,0.00022762,2]
[313753478,1707672632211,-160.92398459,0.000228,2]
[313753479,1707672632222,-342.76313351,0.00022858,2]
[313753480,1707672632232,-3569.39351866,0.00022858,2]
[313753481,1707672632246,-204.53410873,0.00022858,2]
[313753482,1707672632256,-155.37044659,0.00022858,2]
[313753483,1707672632266,-155.0,0.00022858,2]
[313753485,1707672632276,-155.5341225,0.00022858,2]
[313753487,1707672632285,-156.30785035,0.00022858,2]
[313753489,1707672632295,-1078.48956501,0.00022858,2]
[313753491,1707672632304,-247.34763938,0.00022859,2]
[313753493,1707672632314,-391.5062067,0.00022859,2]
[313753495,1707672632323,-2984.80576353,0.00022859,2]
[313753497,1707672632332,-4549.815,0.0002286,2]
[313753500,1707672632342,-500.0,0.0002286,2]
[313753502,1707672632351,-2297.96,0.0002286,2]
[313753504,1707672632360,-235000.0,0.0002286,2]
[313753506,1707672632369,-21398.0246,0.0002286,2]
[313753508,1707672632378,-153.76090238,0.00022992,2]
[313753510,1707672632387,-2607.54162794,0.00023,2]
[313753512,1707672632396,-500.0,0.00023014,2]
[313753514,1707672632405,-1000.0,0.00023077,2]
[313753516,1707672632414,-153.76090238,0.00023629,2]
[313753518,1707672632423,-202.13886159,0.00024,2]
[313753520,1707672632432,-153.76090238,0.00024266,2]
[313753522,1707672632441,-3778.04,0.00024384,2]
[313753523,1707672632450,-800.0,0.00024658,2]
[313753524,1707672632459,-250.0,0.00024658,2]
[313753525,1707672632468,-155.53582091,0.00024662,2]
[313753526,1707672632477,-924.0091,0.00024688,2]
[313753527,1707672632486,-471.694,0.00024688,2]
[313753528,1707672632494,-1029.73,0.00024688,2]
[313753529,1707672632503,-1234.4284,0.00024688,2]
[313753530,1707672632513,-216.9973952,0.00024688,2]
[313753531,1707672632522,-243.70523118,0.00024688,2]
[313753532,1707672632531,-549.32089012,0.00024688,2]
[313753533,1707672632541,-2000.0,0.0002469,3]
[313753534,1707672632550,-11353.29,0.000247,2]
[313753535,1707672632559,-11353.29,0.000247,2]
[313753536,1707672632569,-800.0,0.00024767,2]
[313753537,1707672632578,-194.28799479,0.00024778,2]
[313753538,1707672632587,-155.50376244,0.00024786,2]
[313753539,1707672632596,-240.90015327,0.00024786,2]
[313753540,1707672632605,-12624.91635072,0.00024786,2]
[313753541,1707672632614,-155.68244349,0.00024786,2]
[313753542,1707672632623,-2909.36169139,0.00024786,2]
[313753543,1707672632632,-155.75787783,0.00024786,2]
[313753544,1707672632642,-265.48473175,0.00024786,2]
[313753545,1707672632651,-156.16987951,0.00024786,2]
[313753546,1707672632660,-284.59286079,0.00024786,2]
[313753547,1707672632670,-164.74290655,0.00024786,2]
[313753548,1707672632679,-213.07699592,0.00024786,2]
[313753549,1707672632688,-157.68456949,0.00024786,2]
[313753550,1707672632697,-242.15021279,0.00024786,2]
[313753551,1707672632707,-352.66355915,0.00024786,2]
[313753552,1707672632716,-295.71825411,0.00024786,2]
[313753553,1707672632726,-849.81731875,0.00024786,2]
[313753554,1707672632735,-271.66179586,0.00024786,2]
[313753555,1707672632744,-215.28420849,0.00024786,2]
[313753556,1707672632754,-1686.36413778,0.00024786,2]
[313753557,1707672632764,-526.21762846,0.00024786,2]
[313753558,1707672632807,-229.0726323,0.00024786,2]
[313753559,1707672632817,-365.44908735,0.00024786,2]
[313753560,1707672632826,-309.65015093,0.00024786,2]
[313753561,1707672632836,-319.8182542,0.00024786,2]
[313753562,1707672632844,-270.6074957,0.00024786,2]
[313753563,1707672632854,-162.76477441,0.00024786,2]
[313753564,1707672632863,-159.81808103,0.00024786,2]
[313753565,1707672632875,-155.42308366,0.00024786,2]
[313753566,1707672632884,-249.72606267,0.00024786,2]
[313753567,1707672632893,-489.00832469,0.00024786,2]
[313753568,1707672632902,-155.24558013,0.00024786,2]
[313753569,1707672632911,-155.0,0.00024786,2]
[313753570,1707672632920,-295.08107635,0.00024786,2]
[313753571,1707672632930,-177.98165687,0.00024786,2]
[313753572,1707672632939,-296.72131859,0.00024786,2]
[313753573,1707672632948,-289.10713379,0.00024786,2]
[313753574,1707672632957,-274.45191543,0.00024786,2]
[313753575,1707672632966,-158.26556361,0.00024786,2]
[313753576,1707672632976,-155.0,0.00024786,2]
[313753577,1707672632985,-158.08966468,0.00024786,2]
[313753578,1707672632994,-194.5637917,0.00024786,2]
[313753579,1707672633003,-155.60915498,0.00024786,2]
[313753580,1707672633012,-2148.03579195,0.00024786,2]
[313753581,1707672633020,-155.82949393,0.00024787,2]
[313753582,1707672633029,-63244.39347196,0.00024788,2]
[313753583,1707672633042,-5037.50612945,0.00024788,2]
[313753584,1707672633057,-658.46,0.00024788,2]
[313753585,1707672633069,-388.42893379,0.00024788,2]
[313753586,1707672633080,-2650.02266968,0.00024788,2]
[313753587,1707672633095,-439.62247958,0.00024788,2]
[313753588,1707672633105,-1419.47488724,0.00024788,2]
[313753589,1707672633117,-168694.35142754,0.00024788,2]
[313753590,1707672633126,-1406.26397173,0.00024788,2]
[313753591,1707672633136,-157399.89572078,0.00024788,2]
[313753592,1707672633148,-375.48056187,0.00024788,2]
[313753593,1707672633161,-2072.3835345,0.00024788,2]
[313753594,1707672633211,-67013.94090527,0.00024788,2]
[313753600,1707672638098,-376698.8669631,0.00024788,2]
[313753601,1707672638108,-348.37706593,0.00024788,2]
[313753602,1707672638118,-228419.87813797,0.0002479,2]
[313753603,1707672638127,-228419.87813797,0.0002479,2]
[313753604,1707672638138,-500.0,0.000248,9]
[313753605,1707672638147,-323.34,0.00024883,2]
[313753606,1707672638158,-1100.0,0.000249,9]
[313753607,1707672638169,-153.76090238,0.00024903,2]
[313753608,1707672638179,-305.09660322,0.00025,2]
[313753609,1707672638189,-432.08201886,0.00025,2]
[313753610,1707672638198,-946.10396075,0.00025,2]
[313753611,1707672638207,-651.15796803,0.00025,2]
[313753612,1707672638217,-168.26749515,0.00025,2]
[313753613,1707672638226,-324.5597828,0.00025,2]
[313753614,1707672638237,-4167.81269404,0.00025,4]
[313753615,1707672638247,-1591.80252541,0.00025,2]
[313753616,1707672638257,-159.58023818,0.00025,2]
[313753617,1707672638266,-938.20137126,0.00025,2]
[313753618,1707672638275,-1250.0,0.00025,3]
[313753619,1707672638285,-3177.799,0.00025209,2]
[313753620,1707672638294,-2287.0,0.00025209,2]
[313753621,1707672638303,-2093.756,0.00025209,2]
[313753622,1707672638313,-2831.0,0.00025209,2]
[313753623,1707672638322,-951.0,0.00025209,2]
[313753624,1707672638331,-1858.0,0.00025209,2]
[313753625,1707672638340,-1036.0,0.00025209,2]
[313753626,1707672638350,-153.76090238,0.0002554,2]
[313753627,1707672638359,-216.99739511,0.00025762,2]
[313753628,1707672638369,-1000.0,0.00025962,2]
[313753630,1707672638378,-5000.0,0.00025976,2]
[313753632,1707672638387,-6262.20281983,0.00025977,2]
[313753634,1707672638397,-271.07395729,0.00026075,2]
[313753636,1707672638406,-228419.87813797,0.00026076,2]
[313753638,1707672638415,-153.76090238,0.00026177,2]
[313753640,1707672638425,-216.99739511,0.00026836,2]
[313753642,1707672638435,-237.0,0.00026904,2]
[313753644,1707672638444,-1003.0,0.00026904,2]
[313753646,1707672638453,-429.0,0.00026904,2]
[313753648,1707672638463,-1842.31,0.00026904,2]
[313753650,1707672638472,-859.0,0.00026904,2]
[313753652,1707672638481,-1128.0,0.00026904,2]
[313753654,1707672638490,-150.0,0.00026904,2]
[313753656,1707672638499,-321.0,0.00026904,2]
[313753658,1707672638508,-343.0,0.00026904,2]
[313753660,1707672638518,-453.0,0.00026904,2]
[313753662,1707672638527,-2923.0,0.00026904,2]
[313753664,1707672638536,-243.70523115,0.00026991,2]
[313753666,1707672638545,-417.62805344,0.00027,2]
[313753668,1707672638554,-1300.0,0.00027,3]
[313753670,1707672638563,-323.34,0.00027147,2]
[313753672,1707672638572,-155.0,0.00027397,2]
[313753674,1707672638581,-3870.98,0.00027397,2]
[313753676,1707672638591,-724.44,0.00027397,2]
[313753678,1707672638600,-1000.0,0.000274,2]
[313753680,1707672638609,-1500.0,0.000274,2]
[313753682,1707672638619,-228419.87813797,0.00027735,2]
[313753684,1707672638628,-216.99739511,0.00027909,2]
[313753686,1707672638637,-111231.5939219,0.00028,2]
[313753697,1707672638727,-1783.66,0.00028,2]
[313753702,1707672638760,-10017.42657494,0.00028,2]
[313753704,1707672638772,-677.48546916,0.00028,2]
[313753718,1707672641307,-841.0,0.00025209,2]
[313753719,1707672641317,-4689.58,0.00025904,2]
[313753720,1707672641326,-8908.87770947,0.00028,2]
[313753721,1707672641336,-200.0,0.00028,2]
[313753722,1707672641346,-2274.0,0.00028209,2]
[313753723,1707672641356,-2831.0,0.00028209,2]
[313753724,1707672641366,-649.597,0.00028209,2]
[313753725,1707672641375,-841.0,0.00028209,2]
[313753726,1707672641390,-912.26263434,0.00028413,4]
[313753727,1707672641402,-364.86941493,0.00028413,2]
[313753728,1707672641411,-779.81713926,0.00028413,4]
[313753729,1707672641421,-617.39603833,0.00028413,4]
[313753730,1707672641432,-1235.20006347,0.0002846,5]
[313753732,1707672644127,-6570.847221,0.0002846,5]
[313753737,1707672646003,-230.93845314,0.00027999,2]
[313753738,1707672646012,-838.57385385,0.00027999,2]
[313753739,1707672646597,-307.609591,0.00027999,2]
[313753770,1707673097650,258.67,0.00022329,2]
[313753797,1707673620253,245.73,0.00022053,2]
[313753828,1707673832141,-155.0,0.00022584,2]
[313753829,1707673832151,-293.61341231,0.00022585,2]
[313753830,1707673832161,-216.20314673,0.00022585,2]
[313753831,1707673832171,-377.54550241,0.00022585,2]
[313753832,1707673832183,-4165.58258145,0.00022585,2]
[313753833,1707673832192,-2606.19621168,0.00022585,2]
[313753834,1707673832202,-436.36606783,0.00022586,2]
[313753835,1707673832211,-491.0180422,0.00022586,2]
[313753836,1707673832220,-16850.47449594,0.00022587,2]
[313753837,1707673832229,-300.0,0.00022595,2]
[313753838,1707673832238,-3290.47034277,0.00022602,2]
[313753839,1707673832247,-370.40588146,0.00022642,2]
[313753840,1707673832268,-357.28411854,0.00022642,2]
[313753841,1707673832277,-728.74,0.00022645,2]
[313753842,1707673832286,-730.9,0.00022645,2]
[313753843,1707673832295,-292.18,0.00022645,2]
[313753844,1707673832307,-499.99,0.00022645,2]
[313753845,1707673832316,-720.25,0.00022647,2]
[313753846,1707673832325,-730.37,0.0002265,2]
[313753847,1707673832334,-720.94,0.00022653,2]
[313753848,1707673832344,-712.97,0.00022656,2]
[313753849,1707673832354,-557.15402815,0.00022659,2]
[313753850,1707673832365,-723.56,0.0002266,2]
[313753851,1707673832374,-735.64,0.0002266,2]
[313753852,1707673832383,-1295.46177935,0.0002266,2]
[313753853,1707673832396,-2834.77302065,0.0002266,2]
[313753854,1707673832405,-722.99,0.00022756,2]
[313753855,1707673832415,-719.4,0.00022757,2]
[313753856,1707673832424,-3467.5293,0.0002276,2]
[313753858,1707673832434,-14484.1766,0.0002276,2]
[313753860,1707673832443,-155.0,0.000228,2]
[313753862,1707673832452,-500.0,0.00023852,2]
[313753863,1707673832461,-202.13886159,0.00024,2]
[313753865,1707673832472,-500.0,0.00024172,2]
[313753868,1707673832481,-1000.0,0.00024173,2]
[313753869,1707673832492,-250.0,0.00024209,2]
[313753870,1707673832502,-173.47,0.00024269,2]
[313753871,1707673832511,-245.73,0.00024317,2]
[313753872,1707673832521,-3148.36,0.00024384,2]
[313753873,1707673832531,-3907.98,0.00024384,2]
[313753874,1707673832540,-250.0,0.00024658,2]
[313753875,1707673832550,-1694.5595,0.00024688,3]
[313753876,1707673832564,-1250.0,0.00025,3]
[313753877,1707673832574,-1591.80252541,0.00025,2]
[313753878,1707673832585,-168.26749515,0.00025,2]
[313753879,1707673832596,-159.58023818,0.00026003,2]
[313753880,1707673832605,-938.20137126,0.00026003,2]
[313753881,1707673832616,-946.10396075,0.00026004,2]
[313753882,1707673832626,-305.09660322,0.00026005,2]
[313753883,1707673832637,-1920.41558454,0.00026015,2]
[313753884,1707673832650,-800.95741546,0.00026015,2]
[313753885,1707673832661,-424.594,0.00026015,2]
[313753886,1707673832672,-237.0,0.00026015,2]
[313753887,1707673832683,-859.0,0.00026015,2]
[313753888,1707673832693,-321.0,0.00026015,2]
[313753889,1707673832703,-150.0,0.00026015,2]
[313753890,1707673832714,-453.0,0.00026015,2]
[313753891,1707673832725,-150.0,0.00026015,2]
[313753892,1707673832736,-245.73,0.0002658,2]
[313753893,1707673832746,-288.5394586,0.00026599,2]
[313753894,1707673832755,-1300.0,0.00027,3]
[313753895,1707673832765,-166.71,0.00027058,2]
[313753896,1707673832775,-1000.0,0.00027195,2]